[Event "*** Titled Tuesday Blitz"]
[Site "Chess.com"]
[Date "2020.11.03"]
[Round "10"]
[White "kreonx"]
[Black "Kapibara_Warri0r"]
[Result "0-1"]
[WhiteElo "2279"]
[BlackElo "2164"]
[TimeControl "180+1"]
[EndTime "12:01:07 PST"]
[Termination "Kapibara_Warri0r won by checkmate"]

1. e4 {[%clk 0:03:00.9]} 1... e5 {[%clk 0:02:59.2]} 2. Nc3 {[%clk 0:02:57.9]}
2... Nf6 {[%clk 0:02:58.8]} 3. g3 {[%clk 0:02:58.2]} 3... Be7 {[%clk 0:02:57.5]}
4. Bg2 {[%clk 0:02:58.2]} 4... O-O {[%clk 0:02:57.2]} 5. Nge2 {[%clk 0:02:58.7]}
5... c6 {[%clk 0:02:57.4]} 6. d4 {[%clk 0:02:57.6]} 6... d6 {[%clk 0:02:48.9]}
7. O-O {[%clk 0:02:54]} 7... Nbd7 {[%clk 0:02:47.8]} 8. f4 {[%clk 0:02:53.3]}
8... exd4 {[%clk 0:02:46.3]} 9. Nxd4 {[%clk 0:02:53.2]} 9... Qb6 {[%clk
0:02:41.1]} 10. h3 {[%clk 0:02:44.8]} 10... d5 {[%clk 0:02:22.4]} 11. e5 {[%clk
0:02:21.1]} 11... Nh5 {[%clk 0:01:44.5]} 12. Kh2 {[%clk 0:02:16.5]} 12... g6
{[%clk 0:01:44.7]} 13. g4 {[%clk 0:01:55.3]} 13... Ng7 {[%clk 0:01:40.8]} 14. g5
{[%clk 0:01:44.9]} 14... Nc5 {[%clk 0:01:31.3]} 15. Rb1 {[%clk 0:01:34.6]} 15...
Nce6 {[%clk 0:01:24.6]} 16. Be3 {[%clk 0:01:16.9]} 16... Nxd4 {[%clk 0:01:12.1]}
17. Bxd4 {[%clk 0:01:17.8]} 17... Qc7 {[%clk 0:01:07.6]} 18. Ne2 {[%clk
0:01:02.1]} 18... Nf5 {[%clk 0:00:56.5]} 19. Ng3 {[%clk 0:01:01.9]} 19... Nh4
{[%clk 0:00:47.9]} 20. Bh1 {[%clk 0:00:56.6]} 20... Qd7 {[%clk 0:00:44.3]} 21.
f5 {[%clk 0:00:46]} 21... Bxg5 {[%clk 0:00:37.1]} 22. Qg4 {[%clk 0:00:37.6]}
22... h6 {[%clk 0:00:36.5]} 23. e6 {[%clk 0:00:17.4]} 23... fxe6 {[%clk
0:00:33.8]} 24. fxg6 {[%clk 0:00:15.6]} 24... Nxg6 {[%clk 0:00:24.2]} 25. Rxf8+
{[%clk 0:00:12.2]} 25... Nxf8 {[%clk 0:00:21.4]} 26. h4 {[%clk 0:00:11.1]} 26...
e5 {[%clk 0:00:16.7]} 27. Qxd7 {[%clk 0:00:09]} 27... Nxd7 {[%clk 0:00:17.6]}
28. hxg5 {[%clk 0:00:08]} 28... exd4 {[%clk 0:00:18.5]} 29. gxh6 {[%clk
0:00:08.9]} 29... Ne5 {[%clk 0:00:17.1]} 30. Re1 {[%clk 0:00:08.6]} 30... Ng4+
{[%clk 0:00:16.8]} 31. Kg1 {[%clk 0:00:07.4]} 31... Bd7 {[%clk 0:00:15.3]} 32.
Re7 {[%clk 0:00:06.4]} 32... Rd8 {[%clk 0:00:13.1]} 33. Bf3 {[%clk 0:00:05.8]}
33... Nxh6 {[%clk 0:00:13]} 34. Nh5 {[%clk 0:00:05.7]} 34... Nf5 {[%clk
0:00:12.5]} 35. Nf6+ {[%clk 0:00:05.3]} 35... Kf8 {[%clk 0:00:11.9]} 36. Rh7
{[%clk 0:00:05.8]} 36... Be6 {[%clk 0:00:11.4]} 37. Bh5 {[%clk 0:00:05.4]} 37...
Rd6 {[%clk 0:00:09.8]} 38. Rh8+ {[%clk 0:00:05.1]} 38... Ke7 {[%clk 0:00:09.9]}
39. Ng4 {[%clk 0:00:04.7]} 39... Kd7 {[%clk 0:00:09.3]} 40. Rh7+ {[%clk
0:00:05.1]} 40... Kc8 {[%clk 0:00:09.3]} 41. Ne5 {[%clk 0:00:05.5]} 41... Rd8
{[%clk 0:00:08.3]} 42. Rh8 {[%clk 0:00:06.4]} 42... Rxh8 {[%clk 0:00:08.2]} 43.
Bf3 {[%clk 0:00:05.8]} 43... Rg8+ {[%clk 0:00:08.1]} 44. Kf2 {[%clk 0:00:05.4]}
44... Nh4 {[%clk 0:00:08.3]} 45. Be2 {[%clk 0:00:04.8]} 45... Rf8+ {[%clk
0:00:08.1]} 46. Kg3 {[%clk 0:00:04.5]} 46... Nf5+ {[%clk 0:00:08.3]} 47. Kf2
{[%clk 0:00:04.1]} 47... Nd6+ {[%clk 0:00:07.3]} 48. Ke1 {[%clk 0:00:04.5]}
48... Nc4 {[%clk 0:00:07.1]} 49. Nd3 {[%clk 0:00:03.9]} 49... Bf5 {[%clk
0:00:05.8]} 50. b3 {[%clk 0:00:04.8]} 50... Bxd3 {[%clk 0:00:05.8]} 51. cxd3
{[%clk 0:00:05.3]} 51... Ne5 {[%clk 0:00:05.9]} 52. Kd2 {[%clk 0:00:04.6]} 52...
Nf3+ {[%clk 0:00:05.7]} 53. Kc2 {[%clk 0:00:04.1]} 53... Ng1 {[%clk 0:00:05.2]}
54. Bg4+ {[%clk 0:00:04.1]} 54... Kc7 {[%clk 0:00:05.6]} 55. b4 {[%clk 0:00:05]}
55... Rf2+ {[%clk 0:00:05.4]} 56. Kb3 {[%clk 0:00:05.9]} 56... Rg2 {[%clk
0:00:05.4]} 57. Bf5 {[%clk 0:00:05.2]} 57... Ne2 {[%clk 0:00:05.8]} 58. b5
{[%clk 0:00:05.5]} 58... Nf4 {[%clk 0:00:06.3]} 59. b6+ {[%clk 0:00:06.4]} 59...
Kxb6 {[%clk 0:00:06.2]} 60. Bd7 {[%clk 0:00:06]} 60... Rd2 {[%clk 0:00:06.1]}
61. Ka4 {[%clk 0:00:04.8]} 61... Nxd3 {[%clk 0:00:04.9]} 62. a3 {[%clk
0:00:05.7]} 62... Nb2+ {[%clk 0:00:04.5]} 63. Kb3 {[%clk 0:00:05.6]} 63... Nc4
{[%clk 0:00:04.7]} 64. a4 {[%clk 0:00:05.4]} 64... Rb2# {[%clk 0:00:05.3]} 0-1

[Event "*** Titled Tuesday Blitz"]
[Site "Chess.com"]
[Date "2020.11.03"]
[Round "10"]
[White "ljuks68"]
[Black "karwowskikacper"]
[Result "1-0"]
[WhiteElo "2371"]
[BlackElo "2441"]
[TimeControl "180+1"]
[EndTime "12:01:08 PST"]
[Termination "ljuks68 won by checkmate"]

1. e4 {[%clk 0:02:57.6]} 1... c5 {[%clk 0:02:59.8]} 2. Nf3 {[%clk 0:02:57.6]}
2... e6 {[%clk 0:03:00.3]} 3. d4 {[%clk 0:02:57.9]} 3... cxd4 {[%clk 0:03:00.1]}
4. Nxd4 {[%clk 0:02:58.4]} 4... Nf6 {[%clk 0:03:00.6]} 5. Nc3 {[%clk 0:02:58.1]}
5... Bb4 {[%clk 0:03:00.2]} 6. e5 {[%clk 0:02:57.5]} 6... Nd5 {[%clk 0:02:59.9]}
7. Qg4 {[%clk 0:02:56.2]} 7... Kf8 {[%clk 0:02:59.9]} 8. Bd2 {[%clk 0:02:48.1]}
8... d6 {[%clk 0:02:49.7]} 9. exd6 {[%clk 0:02:31.5]} 9... Qxd6 {[%clk
0:02:45.8]} 10. Qg3 {[%clk 0:02:13.8]} 10... Qxg3 {[%clk 0:02:36]} 11. hxg3
{[%clk 0:02:13.4]} 11... Bxc3 {[%clk 0:02:36.3]} 12. bxc3 {[%clk 0:02:13.1]}
12... e5 {[%clk 0:02:36.7]} 13. c4 {[%clk 0:02:09.6]} 13... Nc7 {[%clk
0:02:29.5]} 14. Bb4+ {[%clk 0:01:58.9]} 14... Kg8 {[%clk 0:02:29.1]} 15. Nf3
{[%clk 0:01:58.7]} 15... f6 {[%clk 0:02:28.2]} 16. O-O-O {[%clk 0:01:58.3]}
16... Nc6 {[%clk 0:02:28.5]} 17. Bd6 {[%clk 0:01:49.7]} 17... Ne6 {[%clk
0:02:28]} 18. c5 {[%clk 0:01:49.4]} 18... g6 {[%clk 0:02:20.8]} 19. Bc4 {[%clk
0:01:43.2]} 19... Kg7 {[%clk 0:02:20]} 20. c3 {[%clk 0:01:41.8]} 20... h6 {[%clk
0:02:08.8]} 21. Kc2 {[%clk 0:01:40.8]} 21... Ng5 {[%clk 0:02:05.4]} 22. Nxg5
{[%clk 0:01:21.1]} 22... hxg5 {[%clk 0:02:06.3]} 23. Rxh8 {[%clk 0:01:20.9]}
23... Kxh8 {[%clk 0:02:01.5]} 24. Bc7 {[%clk 0:01:21.3]} 24... Bf5+ {[%clk
0:02:00.9]} 25. Kb2 {[%clk 0:01:16.2]} 25... Rc8 {[%clk 0:01:55.5]} 26. Bd6
{[%clk 0:01:13.9]} 26... Kg7 {[%clk 0:01:53.6]} 27. Bd5 {[%clk 0:01:13.5]} 27...
Rh8 {[%clk 0:01:46]} 28. Kb3 {[%clk 0:01:02.2]} 28... g4 {[%clk 0:01:36.3]} 29.
Ka4 {[%clk 0:00:59.7]} 29... a6 {[%clk 0:01:28.6]} 30. Bxc6 {[%clk 0:00:56.4]}
30... bxc6 {[%clk 0:01:29.5]} 31. Ka5 {[%clk 0:00:55.8]} 31... Rh2 {[%clk
0:01:28.7]} 32. Kxa6 {[%clk 0:00:46]} 32... Rxg2 {[%clk 0:01:27.4]} 33. Kb6
{[%clk 0:00:40.7]} 33... Rxf2 {[%clk 0:01:23.8]} 34. Kxc6 {[%clk 0:00:35]} 34...
Rxa2 {[%clk 0:01:22.2]} 35. Kd5 {[%clk 0:00:27.8]} 35... Rc2 {[%clk 0:01:07.7]}
36. c6 {[%clk 0:00:19.3]} 36... Rxc3 {[%clk 0:01:06.2]} 37. c7 {[%clk
0:00:18.9]} 37... Kf7 {[%clk 0:01:00.9]} 38. Rf1 {[%clk 0:00:14.9]} 38... Be6+
{[%clk 0:00:58.8]} 39. Ke4 {[%clk 0:00:11.3]} 39... Rc4+ {[%clk 0:00:47.3]} 40.
Ke3 {[%clk 0:00:09.4]} 40... Rc3+ {[%clk 0:00:33.2]} 41. Ke4 {[%clk 0:00:08.8]}
41... Rc6 {[%clk 0:00:33.3]} 42. Bxe5 {[%clk 0:00:07.9]} 42... Bf5+ {[%clk
0:00:33.5]} 43. Kd5 {[%clk 0:00:04.8]} 43... Rc2 {[%clk 0:00:21.1]} 44. Rxf5
{[%clk 0:00:04.5]} 44... gxf5 {[%clk 0:00:19.7]} 45. Bd6 {[%clk 0:00:04.3]}
45... Rc1 {[%clk 0:00:16.1]} 46. Bc5 {[%clk 0:00:03.5]} 46... Rd1+ {[%clk
0:00:16.2]} 47. Kc6 {[%clk 0:00:03.4]} 47... f4 {[%clk 0:00:16]} 48. c8=Q {[%clk
0:00:03.3]} 48... fxg3 {[%clk 0:00:16.2]} 49. Qxg4 {[%clk 0:00:03.1]} 49... Rd3
{[%clk 0:00:16.5]} 50. Qh5+ {[%clk 0:00:02.7]} 50... Ke6 {[%clk 0:00:16.1]} 51.
Qg4+ {[%clk 0:00:02.9]} 51... f5 {[%clk 0:00:16.3]} 52. Qg6+ {[%clk 0:00:02.4]}
52... Ke5 {[%clk 0:00:16.6]} 53. Bd6+ {[%clk 0:00:02.6]} 53... Ke4 {[%clk
0:00:14.4]} 54. Bxg3 {[%clk 0:00:02.9]} 54... Rc3+ {[%clk 0:00:12.5]} 55. Kd6
{[%clk 0:00:02.9]} 55... Ra3 {[%clk 0:00:12.3]} 56. Qe6+ {[%clk 0:00:01.8]}
56... Kd4 {[%clk 0:00:12.7]} 57. Qf6+ {[%clk 0:00:02.1]} 57... Ke4 {[%clk
0:00:12.5]} 58. Qg5 {[%clk 0:00:03]} 58... Ra6+ {[%clk 0:00:12]} 59. Ke7 {[%clk
0:00:03.9]} 59... Ra7+ {[%clk 0:00:11.1]} 60. Kf8 {[%clk 0:00:04.8]} 60... Ra3
{[%clk 0:00:03.4]} 61. Qf4+ {[%clk 0:00:04.3]} 61... Kd5 {[%clk 0:00:03.8]} 62.
Qd6+ {[%clk 0:00:04.3]} 62... Ke4 {[%clk 0:00:03.8]} 63. Qxa3 {[%clk 0:00:05.2]}
63... f4 {[%clk 0:00:04.7]} 64. Qd6 {[%clk 0:00:05.2]} 64... fxg3 {[%clk
0:00:04.2]} 65. Qxg3 {[%clk 0:00:05.3]} 65... Kf5 {[%clk 0:00:05.1]} 66. Qh4
{[%clk 0:00:04.9]} 66... Kg6 {[%clk 0:00:06]} 67. Qf4 {[%clk 0:00:04.7]} 67...
Kh5 {[%clk 0:00:06]} 68. Qg3 {[%clk 0:00:04.5]} 68... Kh6 {[%clk 0:00:06.2]} 69.
Kf7 {[%clk 0:00:04.6]} 69... Kh5 {[%clk 0:00:06.4]} 70. Kf6 {[%clk 0:00:04.6]}
70... Kh6 {[%clk 0:00:06.8]} 71. Qh3# {[%clk 0:00:04.7]} 1-0

[Event "*** Titled Tuesday Blitz"]
[Site "Chess.com"]
[Date "2020.11.03"]
[Round "10"]
[White "Harsha_Bharathakoti"]
[Black "Bigfish1995"]
[Result "1-0"]
[WhiteElo "2822"]
[BlackElo "2983"]
[TimeControl "180+1"]
[EndTime "12:01:19 PST"]
[Termination "Harsha_Bharathakoti won by resignation"]

1. d4 {[%clk 0:03:00.9]} 1... f5 {[%clk 0:02:50.8]} 2. c4 {[%clk 0:02:57.7]}
2... e6 {[%clk 0:02:50.9]} 3. Nf3 {[%clk 0:02:54.8]} 3... Nf6 {[%clk 0:02:50.8]}
4. g3 {[%clk 0:02:54.9]} 4... d5 {[%clk 0:02:50.6]} 5. Bg2 {[%clk 0:02:53.3]}
5... c6 {[%clk 0:02:50.9]} 6. O-O {[%clk 0:02:53.6]} 6... Bd6 {[%clk 0:02:51]}
7. b3 {[%clk 0:02:50.9]} 7... Qe7 {[%clk 0:02:49.9]} 8. Qc2 {[%clk 0:02:48.7]}
8... O-O {[%clk 0:02:49.4]} 9. Nc3 {[%clk 0:02:40.3]} 9... Nbd7 {[%clk
0:02:49.1]} 10. Bf4 {[%clk 0:02:30.5]} 10... Bxf4 {[%clk 0:02:44.2]} 11. gxf4
{[%clk 0:02:29.1]} 11... Ne4 {[%clk 0:02:45.1]} 12. e3 {[%clk 0:02:25.2]} 12...
Rf6 {[%clk 0:02:44.9]} 13. Nxe4 {[%clk 0:01:54.6]} 13... fxe4 {[%clk 0:02:40.8]}
14. Ne5 {[%clk 0:01:54.9]} 14... Nxe5 {[%clk 0:02:39.2]} 15. fxe5 {[%clk
0:01:55.2]} 15... Rh6 {[%clk 0:02:24.8]} 16. f3 {[%clk 0:01:41.7]} 16... Qh4
{[%clk 0:02:21.6]} 17. h3 {[%clk 0:01:38.1]} 17... Qg3 {[%clk 0:02:21.8]} 18.
Qf2 {[%clk 0:01:25.4]} 18... Rxh3 {[%clk 0:01:47.4]} 19. Qxg3 {[%clk 0:01:24.4]}
19... Rxg3 {[%clk 0:01:48.3]} 20. Kh2 {[%clk 0:01:06.1]} 20... Rg5 {[%clk
0:01:46.3]} 21. fxe4 {[%clk 0:01:06.5]} 21... dxc4 {[%clk 0:01:46.5]} 22. bxc4
{[%clk 0:01:06.6]} 22... c5 {[%clk 0:01:47.1]} 23. Rf4 {[%clk 0:00:49.2]} 23...
Bd7 {[%clk 0:01:46.3]} 24. Raf1 {[%clk 0:00:46.7]} 24... Rd8 {[%clk 0:01:42.1]}
25. Bh3 {[%clk 0:00:40.2]} 25... h6 {[%clk 0:01:41.8]} 26. Rf7 {[%clk
0:00:32.5]} 26... Kh7 {[%clk 0:01:25.9]} 27. Re7 {[%clk 0:00:25.3]} 27... b5
{[%clk 0:01:15.7]} 28. cxb5 {[%clk 0:00:08.7]} 28... Bxb5 {[%clk 0:01:14.7]} 29.
Rd1 {[%clk 0:00:07.8]} 29... Be2 {[%clk 0:01:10]} 30. Rd2 {[%clk 0:00:07]} 30...
Bf3 {[%clk 0:01:10.6]} 31. Bxe6 {[%clk 0:00:03.9]} 31... Bxe4 {[%clk 0:01:09.2]}
32. Bh3 {[%clk 0:00:02.2]} 32... c4 {[%clk 0:01:05.3]} 33. Rc7 {[%clk
0:00:02.6]} 33... Rxe5 {[%clk 0:01:05.5]} 34. Rxc4 {[%clk 0:00:01.9]} 34... Bg6
{[%clk 0:00:59.9]} 35. Rc3 {[%clk 0:00:01.1]} 35... Rg5 {[%clk 0:00:58]} 36. Rf2
{[%clk 0:00:01.7]} 36... Re8 {[%clk 0:00:55.7]} 37. Rg2 {[%clk 0:00:02.2]} 37...
Rh5 {[%clk 0:00:54.4]} 38. Rg3 {[%clk 0:00:01.9]} 38... Be4 {[%clk 0:00:53.1]}
39. Kg1 {[%clk 0:00:02.2]} 39... Re7 {[%clk 0:00:52.8]} 40. Bg4 {[%clk
0:00:02.1]} 40... Ra5 {[%clk 0:00:51.2]} 41. a3 {[%clk 0:00:01.7]} 41... Rb7
{[%clk 0:00:50.6]} 42. Kh2 {[%clk 0:00:01.9]} 42... Rb2+ {[%clk 0:00:49.3]} 43.
Kh3 {[%clk 0:00:02.6]} 43... Rg5 {[%clk 0:00:47.3]} 44. Rc1 {[%clk 0:00:01.5]}
44... Ra2 {[%clk 0:00:44.1]} 45. Be6 {[%clk 0:00:02.1]} 45... Rh5+ {[%clk
0:00:28.3]} 46. Kg4 {[%clk 0:00:02]} 46... Rah2 {[%clk 0:00:28.9]} 47. Kf4
{[%clk 0:00:01.8]} 47... Bd3 {[%clk 0:00:21.6]} 48. d5 {[%clk 0:00:02.1]} 48...
Rf2+ {[%clk 0:00:14.4]} 49. Rf3 {[%clk 0:00:02.3]} 49... Rd2 {[%clk 0:00:12.8]}
50. e4 {[%clk 0:00:02.4]} 50... Rh4+ {[%clk 0:00:12.4]} 51. Ke5 {[%clk
0:00:02.8]} 51... Rxe4+ {[%clk 0:00:11.2]} 52. Kd6 {[%clk 0:00:03]} 52... Ree2
{[%clk 0:00:09.8]} 53. Rc8 {[%clk 0:00:03.5]} 53... h5 {[%clk 0:00:07.3]} 54.
Bg8+ {[%clk 0:00:03.2]} 54... Kh6 {[%clk 0:00:07.2]} 55. Be6 {[%clk 0:00:04.1]}
55... Be4 {[%clk 0:00:06.9]} 56. Rg3 {[%clk 0:00:03.3]} 56... g5 {[%clk
0:00:05.9]} 57. Rh8+ {[%clk 0:00:02.5]} 57... Kg6 {[%clk 0:00:05.6]} 58. Rg8+
{[%clk 0:00:02.9]} 58... Kf6 {[%clk 0:00:06.1]} 59. R8xg5 {[%clk 0:00:03.8]}
59... h4 {[%clk 0:00:06.3]} 60. Rg1 {[%clk 0:00:02.6]} 60... h3 {[%clk
0:00:06.4]} 61. Rh5 {[%clk 0:00:03.2]} 61... Bg2 {[%clk 0:00:04.5]} 62. Bxh3
{[%clk 0:00:02]} 62... Kg6 {[%clk 0:00:02.2]} 63. Bxg2 {[%clk 0:00:01.8]} 63...
Kxh5 {[%clk 0:00:02.2]} 64. Bf3+ {[%clk 0:00:02.3]} 64... Kh6 {[%clk 0:00:01.9]}
65. Bxe2 {[%clk 0:00:03.2]} 65... Rxe2 {[%clk 0:00:02.8]} 66. Kc6 {[%clk
0:00:03.4]} 66... Rb2 {[%clk 0:00:03.4]} 67. d6 {[%clk 0:00:03.6]} 67... Rb6+
{[%clk 0:00:04.3]} 68. Kc7 {[%clk 0:00:04]} 68... Rb1 {[%clk 0:00:05.2]} 69. d7
{[%clk 0:00:04.5]} 69... Rxg1 {[%clk 0:00:06.1]} 70. d8=Q {[%clk 0:00:05]} 70...
Rc1+ {[%clk 0:00:06.7]} 71. Kb7 {[%clk 0:00:05.1]} 71... Rc3 {[%clk 0:00:07]}
72. Qd2+ {[%clk 0:00:04.8]} 1-0

[Event "*** Titled Tuesday Blitz"]
[Site "Chess.com"]
[Date "2020.11.03"]
[Round "10"]
[White "m_ezat"]
[Black "MariaFominykh"]
[Result "1-0"]
[WhiteElo "2544"]
[BlackElo "2347"]
[TimeControl "180+1"]
[EndTime "12:01:20 PST"]
[Termination "m_ezat won on time"]

1. d4 {[%clk 0:03:00.9]} 1... d6 {[%clk 0:02:58.1]} 2. c4 {[%clk 0:02:58.1]}
2... e5 {[%clk 0:02:57.8]} 3. Nf3 {[%clk 0:02:57]} 3... e4 {[%clk 0:02:57.3]} 4.
Ng5 {[%clk 0:02:55.9]} 4... f5 {[%clk 0:02:57.9]} 5. h4 {[%clk 0:02:54.3]} 5...
Nf6 {[%clk 0:02:55.8]} 6. Nc3 {[%clk 0:02:53.5]} 6... g6 {[%clk 0:02:55.3]} 7.
Nh3 {[%clk 0:02:51.6]} 7... Bg7 {[%clk 0:02:54.9]} 8. Bg5 {[%clk 0:02:48.1]}
8... h6 {[%clk 0:02:53.5]} 9. Bxf6 {[%clk 0:02:47.5]} 9... Qxf6 {[%clk
0:02:52.6]} 10. e3 {[%clk 0:02:45.7]} 10... c6 {[%clk 0:02:47.3]} 11. Nf4 {[%clk
0:02:42.8]} 11... Na6 {[%clk 0:02:34.4]} 12. Be2 {[%clk 0:02:39.3]} 12... h5
{[%clk 0:02:28.3]} 13. a3 {[%clk 0:02:36.5]} 13... Bd7 {[%clk 0:02:22.2]} 14. b4
{[%clk 0:02:34.3]} 14... Nc7 {[%clk 0:02:18.9]} 15. Rh3 {[%clk 0:02:30.4]} 15...
Ne6 {[%clk 0:02:18.2]} 16. Nxe6 {[%clk 0:02:23]} 16... Bxe6 {[%clk 0:02:17.1]}
17. Rc1 {[%clk 0:02:22]} 17... O-O {[%clk 0:02:04]} 18. Rg3 {[%clk 0:01:55.5]}
18... d5 {[%clk 0:01:46.9]} 19. cxd5 {[%clk 0:01:47.9]} 19... cxd5 {[%clk
0:01:40.7]} 20. Nb5 {[%clk 0:01:47.6]} 20... Rac8 {[%clk 0:01:33]} 21. Nxa7
{[%clk 0:01:38.2]} 21... Rxc1 {[%clk 0:01:27]} 22. Qxc1 {[%clk 0:01:38]} 22...
Ra8 {[%clk 0:01:19.5]} 23. Nb5 {[%clk 0:01:32.6]} 23... Rc8 {[%clk 0:01:18.3]}
24. Qd2 {[%clk 0:01:30]} 24... Bf7 {[%clk 0:01:11.5]} 25. Rh3 {[%clk 0:01:14.3]}
25... Qa6 {[%clk 0:01:01.5]} 26. Qb2 {[%clk 0:00:52.3]} 26... Qa4 {[%clk
0:00:56.1]} 27. Nc3 {[%clk 0:00:49.6]} 27... Qc6 {[%clk 0:00:54]} 28. Kd2 {[%clk
0:00:49.5]} 28... Bf8 {[%clk 0:00:50.3]} 29. Rh1 {[%clk 0:00:49]} 29... Be7
{[%clk 0:00:49.5]} 30. g3 {[%clk 0:00:47.2]} 30... Ra8 {[%clk 0:00:42.4]} 31.
Rc1 {[%clk 0:00:46.4]} 31... Qf6 {[%clk 0:00:34.7]} 32. Nb5 {[%clk 0:00:40.9]}
32... g5 {[%clk 0:00:33.1]} 33. hxg5 {[%clk 0:00:40]} 33... Qxg5 {[%clk
0:00:33.2]} 34. Rh1 {[%clk 0:00:34.2]} 34... Rc8 {[%clk 0:00:31.4]} 35. Nc3
{[%clk 0:00:32]} 35... Kg7 {[%clk 0:00:29.7]} 36. Qb3 {[%clk 0:00:30.4]} 36...
Rd8 {[%clk 0:00:27.3]} 37. Na4 {[%clk 0:00:29.5]} 37... Qh6 {[%clk 0:00:24.6]}
38. Nc5 {[%clk 0:00:29]} 38... b6 {[%clk 0:00:22.6]} 39. Na4 {[%clk 0:00:28.6]}
39... Bf6 {[%clk 0:00:20.8]} 40. Qc3 {[%clk 0:00:26.9]} 40... Bg5 {[%clk
0:00:19.3]} 41. Qc7 {[%clk 0:00:25.8]} 41... Rd6 {[%clk 0:00:18.6]} 42. Bb5
{[%clk 0:00:18.5]} 42... Bd8 {[%clk 0:00:17.7]} 43. Qb7 {[%clk 0:00:17.8]} 43...
h4 {[%clk 0:00:17.6]} 44. Be8 {[%clk 0:00:17.6]} 44... Rf6 {[%clk 0:00:15.2]}
45. gxh4 {[%clk 0:00:17.1]} 45... f4 {[%clk 0:00:14.7]} 46. Rg1+ {[%clk
0:00:17.3]} 46... Kf8 {[%clk 0:00:13.8]} 47. Bxf7 {[%clk 0:00:16.1]} 47... fxe3+
{[%clk 0:00:13.6]} 48. fxe3 {[%clk 0:00:14.9]} 48... Rf2+ {[%clk 0:00:12.6]} 49.
Kd1 {[%clk 0:00:14.4]} 49... Rxf7 {[%clk 0:00:10.3]} 50. Qxd5 {[%clk 0:00:14]}
50... Bxh4 {[%clk 0:00:07.7]} 51. Qxe4 {[%clk 0:00:12.1]} 51... Qh5+ {[%clk
0:00:06.7]} 52. Kc2 {[%clk 0:00:11.2]} 52... Qe2+ {[%clk 0:00:06.4]} 53. Kb3
{[%clk 0:00:10.8]} 53... Rf2 {[%clk 0:00:05.3]} 54. Nc3 {[%clk 0:00:09.8]} 54...
Qb2+ {[%clk 0:00:04.8]} 55. Kc4 {[%clk 0:00:10.4]} 55... Qxa3 {[%clk 0:00:03.4]}
56. Qxh4 {[%clk 0:00:06.6]} 56... Qa6+ {[%clk 0:00:02.9]} 57. b5 {[%clk
0:00:06.1]} 57... Qc8+ {[%clk 0:00:02.5]} 58. Kb3 {[%clk 0:00:05.9]} 58... Qe6+
{[%clk 0:00:01.7]} 59. d5 {[%clk 0:00:06.5]} 59... Qxe3 {[%clk 0:00:01.8]} 60.
Qd8+ {[%clk 0:00:05.9]} 60... Kf7 {[%clk 0:00:01.7]} 61. Qg8+ {[%clk 0:00:06.3]}
61... Ke7 {[%clk 0:00:01.7]} 62. Rg7+ {[%clk 0:00:05.1]} 62... Kd6 {[%clk
0:00:01.7]} 63. Qd8+ {[%clk 0:00:05.6]} 63... Kc5 {[%clk 0:00:01.8]} 64. Qc7+
{[%clk 0:00:06.1]} 64... Kd4 {[%clk 0:00:01.3]} 65. Qxb6+ {[%clk 0:00:06.7]}
65... Kd3 {[%clk 0:00:01.7]} 66. Qxe3+ {[%clk 0:00:07.1]} 66... Kxe3 {[%clk
0:00:02.1]} 67. d6 {[%clk 0:00:07.4]} 67... Kd4 {[%clk 0:00:02.2]} 68. d7 {[%clk
0:00:07.4]} 68... Rf3 {[%clk 0:00:02.9]} 69. Rg4+ {[%clk 0:00:07]} 69... Kc5
{[%clk 0:00:02.4]} 70. d8=Q {[%clk 0:00:07.4]} 70... Rxc3+ {[%clk 0:00:02.4]}
71. Kxc3 {[%clk 0:00:07]} 71... Kxb5 {[%clk 0:00:02.1]} 72. Qd5+ {[%clk
0:00:07.5]} 1-0